bitfinex/quotes_BTCUSD_20251027
["timestamp","ask_amount","ask_price","bid_price","bid_amount"]
[1761582520881,1.05605689,115320.0,115310.0,0.67956]
[1761582523260,0.28203821,115320.0,115310.0,0.67956]
[1761582523463,0.66904755,115320.0,115310.0,0.67956]
[1761582525593,0.68775673,115320.0,115310.0,0.67956]
[1761582528298,0.66904755,115320.0,115310.0,0.67956]
[1761582529812,0.68774689,115320.0,115310.0,0.67956]
[1761582532208,0.66904755,115320.0,115310.0,0.67956]
[1761582532426,0.28203821,115320.0,115310.0,0.67956]
[1761582532648,0.28203821,115320.0,115310.0,1.06656934]
[1761582533098,0.1922192,115320.0,115310.0,1.24001483]
[1761582533309,0.01231875,115320.0,115310.0,1.31567693]
[1761582533515,0.01231875,115320.0,115310.0,1.33161693]
[1761582533716,0.01878875,115320.0,115310.0,1.24001483]
[1761582533924,0.01066753,115320.0,115310.0,1.24001483]
[1761582534703,0.00866753,115320.0,115310.0,1.24001483]
[1761582535887,0.18209798,115320.0,115310.0,1.24001483]
[1761582537584,0.18209798,115320.0,115310.0,0.26360549]
[1761582537801,0.18209798,115320.0,115310.0,0.6796]
[1761582537802,0.19021195,115320.0,115310.0,0.6796]
[1761582538029,0.19021195,115320.0,115310.0,0.85304549]
[1761582538599,0.19021195,115320.0,115310.0,0.6796]
[1761582540292,0.57722129,115320.0,115310.0,0.09016]
[1761582540501,0.57722129,115320.0,115310.0,0.6796]
[1761582540707,0.57922129,115320.0,115310.0,0.6796]
[1761582544032,0.19221195,115320.0,115310.0,1.24005483]
[1761582544450,0.19221195,115320.0,115310.0,0.85304549]
[1761582544652,0.19221195,115320.0,115310.0,1.24005483]
[1761582545099,0.19221195,115320.0,115310.0,0.6796]
[1761582545307,0.19221195,115320.0,115310.0,1.06660934]
[1761582545520,0.19221195,115320.0,115310.0,0.6796]
[1761582546595,0.19212331,115320.0,115310.0,0.6796]
[1761582546796,0.19212331,115320.0,115310.0,0.85304549]
[1761582547200,0.19212331,115320.0,115310.0,0.6796]
[1761582547349,0.19212331,115320.0,115310.0,0.85304549]
[1761582547767,0.19203331,115320.0,115310.0,0.85304549]
[1761582549816,0.19203331,115320.0,115310.0,0.6796]
[1761582550456,0.19203331,115320.0,115310.0,0.85304549]
[1761582550901,0.19203331,115320.0,115310.0,0.6796]
[1761582551338,0.57904265,115320.0,115310.0,0.6796]
[1761582552012,0.66886166,115320.0,115310.0,0.09016]
[1761582552244,2.04260865,115320.0,115310.0,0.67956]
[1761582552447,2.06131481,115320.0,115310.0,0.67956]
[1761582552661,1.67430547,115320.0,115310.0,0.67956]
[1761582553741,1.67230547,115320.0,115310.0,0.67956]
[1761582554180,1.68330547,115320.0,115310.0,0.67956]
[1761582554394,1.70669113,115320.0,115310.0,0.67956]
[1761582555306,1.58502913,115320.0,115310.0,0.67956]
[1761582555516,1.83269513,115320.0,115310.0,0.67956]
[1761582556387,1.81761013,115320.0,115310.0,0.67956]
[1761582556597,1.8668538,115320.0,115310.0,0.67956]
[1761582556812,1.81761013,115320.0,115310.0,0.67956]
[1761582557240,1.60985013,115320.0,115310.0,0.67956]
[1761582557456,1.58646447,115320.0,115310.0,0.67956]
[1761582558725,1.60985013,115320.0,115310.0,0.67956]
[1761582562185,0.83583145,115320.0,115310.0,0.67956]
[1761582562393,1.58646447,115320.0,115310.0,0.67956]
[1761582564907,0.33558679,115320.0,115310.0,0.67956]
[1761582565134,0.31688063,115320.0,115310.0,0.67956]
[1761582566219,0.31588063,115320.0,115310.0,0.67956]
[1761582566430,0.30588063,115320.0,115310.0,0.67956]
[1761582566839,0.30888063,115320.0,115310.0,0.67956]
[1761582568187,0.30887125,115320.0,115310.0,0.67956]
[1761582568406,0.04562179,115320.0,115310.0,0.85300549]
[1761582568630,0.0311372,115320.0,115310.0,1.31404314]
[1761582568850,0.00510889,115320.0,115310.0,1.31404314]
[1761582569736,0.003,115320.0,115310.0,1.26824426]
[1761582569919,0.003,115320.0,115310.0,1.29126426]
[1761582573795,0.003,115320.0,115310.0,1.63126426]
[1761582574658,0.003,115320.0,115310.0,2.10821204]
[1761582574886,0.003,115320.0,115310.0,1.72108327]
[1761582575135,0.003,115320.0,115310.0,1.81945604]
[1761582576416,0.003,115320.0,115310.0,1.72963703]
[1761582577091,0.003,115320.0,115310.0,1.733106]
[1761582577773,0.003,115320.0,115310.0,2.12023477]
[1761582579060,0.0002,115330.0,115320.0,0.51343045]
[1761582579298,0.0002,115330.0,115320.0,1.412727]
[1761582579517,0.0002,115330.0,115320.0,1.428637]
[1761582579730,0.00040617,115330.0,115320.0,1.04150823]
[1761582579931,0.00040617,115330.0,115320.0,1.06752553]
[1761582580577,0.00040617,115330.0,115320.0,1.07252553]
[1761582581388,0.00040617,115330.0,115320.0,1.16234454]
[1761582581608,0.00040617,115330.0,115320.0,1.16334454]
[1761582582227,0.00040617,115330.0,115320.0,1.55047331]
[1761582583457,0.00040617,115330.0,115320.0,1.64063331]
[1761582588240,0.00040617,115330.0,115320.0,1.69611331]
[1761582588612,0.0002,115340.0,115330.0,0.18030924]
[1761582588810,0.00672545,115340.0,115330.0,0.73207801]
[1761582589026,0.00672545,115340.0,115330.0,0.71987801]
[1761582589985,0.00672545,115340.0,115330.0,0.73778801]
[1761582590192,0.00672545,115340.0,115330.0,0.58534801]
[1761582590420,0.00672545,115340.0,115330.0,1.15871801]
[1761582590630,0.00672545,115340.0,115330.0,1.17462801]
[1761582593033,0.18012583,115340.0,115330.0,0.00889383]
[1761582593269,0.22334197,115340.0,115330.0,0.39029383]
[1761582593486,0.22334197,115340.0,115330.0,0.77158924]
[1761582593694,0.21252598,115340.0,115330.0,0.77158924]
[1761582593908,0.18650583,115340.0,115330.0,0.59817383]
[1761582594367,0.18671197,115340.0,115330.0,0.59817383]
[1761582594782,0.1948081,115340.0,115330.0,0.59617383]
[1761582595212,0.1958081,115340.0,115330.0,0.59617383]
[1761582595640,0.22183143,115340.0,115330.0,0.59617383]
[1761582595863,0.22083143,115340.0,115330.0,0.59617383]
[1761582596276,0.22483143,115340.0,115330.0,0.59617383]
[1761582597539,0.6119602,115340.0,115330.0,0.59617383]
[1761582597968,0.22483143,115340.0,115330.0,0.59617383]
[1761582598390,0.22483143,115340.0,115330.0,0.54069383]
[1761582598595,0.22483143,115340.0,115330.0,0.59617383]
[1761582602091,2.47647549,115340.0,115330.0,0.00689383]
[1761582602299,2.46939367,115340.0,115330.0,0.58384]
[1761582602503,1.15559069,115340.0,115330.0,0.5766419]
[1761582602720,1.36033369,115340.0,115330.0,0.5766419]
[1761582603110,1.37233369,115340.0,115330.0,0.5766419]
[1761582603524,1.40447223,115340.0,115330.0,0.5766419]
[1761582603836,1.37333369,115340.0,115330.0,0.5766419]
[1761582604246,1.38333368,115340.0,115330.0,0.5766419]
[1761582604461,1.42445544,115340.0,115330.0,0.5766419]
[1761582605288,1.41445545,115340.0,115330.0,0.5766419]
[1761582605552,1.42445544,115340.0,115330.0,0.5766419]
[1761582605765,1.41445545,115340.0,115330.0,0.5766419]
[1761582605963,1.42445544,115340.0,115330.0,0.5766419]
[1761582606534,1.37777042,115340.0,115330.0,0.5766419]
[1761582608205,1.36777043,115340.0,115330.0,0.5766419]
[1761582608417,1.36484746,115340.0,115330.0,0.5766419]
[1761582608599,1.27126769,115340.0,115330.0,0.5766419]
[1761582609311,1.27121807,115340.0,115330.0,0.5766419]
[1761582611752,1.27021807,115340.0,115330.0,0.5766419]
[1761582612160,1.25921807,115340.0,115330.0,0.5766419]
[1761582612593,1.26321807,115340.0,115330.0,0.5766419]
[1761582613008,1.26421807,115340.0,115330.0,0.6668019]
[1761582613848,0.77333393,115340.0,115330.0,0.6668019]
[1761582614061,0.36018422,115340.0,115330.0,0.6668019]
[1761582614285,0.33687588,115340.0,115330.0,0.6668019]
[1761582614502,0.72400465,115340.0,115330.0,0.6668019]
[1761582615359,0.33687588,115340.0,115330.0,0.6668019]
[1761582615597,0.72400465,115340.0,115330.0,0.6668019]
[1761582617128,0.72400146,115340.0,115330.0,0.6668019]
[1761582618780,0.17594421,115340.0,115330.0,0.6668019]
[1761582618989,0.17594421,115340.0,115330.0,0.6944019]
[1761582619825,0.17094421,115340.0,115330.0,0.6944019]
[1761582620034,0.17094421,115340.0,115330.0,0.6668019]
[1761582621230,0.17094421,115340.0,115330.0,0.6698019]
[1761582621442,0.16994421,115340.0,115330.0,0.6668019]
[1761582623007,0.57874802,115340.0,115330.0,0.6668019]
[1761582623225,0.55707298,115340.0,115330.0,0.6668019]
[1761582623635,0.89707298,115340.0,115330.0,0.6668019]
[1761582623830,0.91574041,115340.0,115330.0,0.62408]
[1761582624028,0.91574041,115340.0,115330.0,0.67956]
[1761582624308,0.94176607,115340.0,115330.0,0.67956]
[1761582625161,0.94476607,115340.0,115330.0,0.67956]
[1761582626045,0.5576373,115340.0,115330.0,0.67956]
[1761582626259,0.94476607,115340.0,115330.0,0.67956]
[1761582626477,0.5576373,115340.0,115330.0,0.67956]
[1761582626691,0.94476607,115340.0,115330.0,0.67956]
[1761582627994,1.33181548,115340.0,115330.0,0.67956]
[1761582630470,1.36799776,115340.0,115330.0,0.67956]
[1761582631560,1.39130211,115340.0,115330.0,0.67956]
[1761582632215,1.39130211,115340.0,115330.0,0.52712]
[1761582632426,3.3123052,115340.0,115330.0,0.6796]
[1761582632637,3.35965071,115340.0,115330.0,0.6796]
[1761582632847,0.17346053,115300.0,115290.0,0.56856678]
[1761582633071,0.56054962,115300.0,115290.0,0.0835]
[1761582633285,0.26327954,115300.0,115290.0,0.0835]
[1761582633497,0.65036863,115300.0,115290.0,0.06687]
[1761582633718,0.65036863,115300.0,115290.0,0.05548]
[1761582633719,0.26327954,115300.0,115290.0,0.05548]
[1761582633944,1.04557049,115300.0,115290.0,0.05548]
[1761582634159,1.04561891,115300.0,115290.0,0.209]
[1761582634371,1.04561891,115300.0,115290.0,0.05648]
[1761582634632,1.04561891,115300.0,115290.0,0.218]
[1761582634840,1.04561891,115300.0,115290.0,0.05548]
[1761582635075,1.04661891,115300.0,115290.0,0.67964]
[1761582635274,1.06530847,115300.0,115290.0,0.67964]
[1761582636841,1.06630847,115300.0,115290.0,0.67964]
[1761582638198,1.10249075,115300.0,115290.0,0.52712]
[1761582638399,1.12852698,115300.0,115290.0,0.67964]
[1761582638612,1.13701894,115300.0,115290.0,0.67964]
[1761582641257,3.86410803,115300.0,115290.0,0.52712]
[1761582641471,3.47701894,115300.0,115290.0,0.67964]
[1761582641712,0.17347558,115290.0,115280.0,0.00139553]
[1761582641918,0.65849645,115290.0,115280.0,0.00139553]
[1761582642979,0.69467873,115290.0,115280.0,0.00139553]
[1761582643186,0.83886194,115290.0,115280.0,0.00339553]
[1761582643419,0.86489945,115290.0,115280.0,0.00339553]
[1761582644059,0.86489945,115290.0,115280.0,0.00139553]
[1761582644268,0.84625124,115290.0,115280.0,0.00339553]
[1761582644481,0.27140736,115290.0,115280.0,0.02002553]
[1761582644690,0.27140736,115290.0,115280.0,0.02933553]
[1761582645102,0.27140736,115290.0,115280.0,0.01270553]
[1761582645518,0.65849645,115290.0,115280.0,0.00139553]
[1761582645925,0.66049645,115290.0,115280.0,0.00139553]
[1761582647436,0.27340736,115290.0,115280.0,0.00139553]
[1761582647659,0.66049645,115290.0,115280.0,0.00139553]
[1761582648305,0.27340736,115290.0,115280.0,0.00139553]
[1761582648514,0.27340736,115290.0,115280.0,0.44059462]
[1761582649265,0.27340736,115290.0,115280.0,0.05350553]
[1761582649478,0.27140736,115290.0,115280.0,0.05350553]
[1761582649685,0.27140736,115290.0,115280.0,0.00339553]
[1761582649901,0.65849645,115290.0,115280.0,0.00339553]
[1761582652147,0.27140736,115290.0,115280.0,0.20482616]
[1761582652352,0.18158835,115290.0,115280.0,0.61608525]
[1761582652563,0.00811277,115290.0,115280.0,1.00317434]
[1761582652771,0.17350895,115300.0,115290.0,0.17347558]
[1761582652988,0.27141891,115300.0,115290.0,0.59604467]
[1761582653195,0.1815999,115300.0,115290.0,0.61267467]
[1761582653606,0.17350895,115300.0,115290.0,0.61267467]
[1761582654000,4.842e-05,115300.0,115290.0,0.61267467]
[1761582654437,0.00104842,115300.0,115290.0,0.61267467]
[1761582654656,0.17550895,115300.0,115290.0,0.61267467]
[1761582655366,0.18260475,115300.0,115290.0,0.61267467]
[1761582655575,0.00914422,115300.0,115290.0,0.61267467]
[1761582655744,0.00814422,115300.0,115290.0,0.61967467]
[1761582655949,4.842e-05,115300.0,115290.0,0.61967467]
[1761582656923,0.17350895,115300.0,115290.0,0.61967467]
[1761582657321,4.842e-05,115300.0,115290.0,0.61967467]
[1761582659647,0.17350895,115300.0,115290.0,0.61967467]
[1761582659864,0.17350895,115300.0,115290.0,0.05911]
[1761582660064,0.17350895,115300.0,115290.0,0.61967467]
[1761582660274,0.17350895,115300.0,115290.0,0.05911]
[1761582661659,0.17350895,115300.0,115290.0,0.05211]
[1761582661869,0.17350895,115300.0,115290.0,0.05811]
[1761582662219,0.17350895,115300.0,115290.0,0.22558558]
[1761582662423,0.17350895,115300.0,115290.0,0.61667467]
[1761582662914,0.17350895,115300.0,115290.0,0.44319909]
[1761582663121,0.17350895,115300.0,115290.0,0.59250467]
[1761582663346,0.17350895,115300.0,115290.0,0.03194]
[1761582663563,0.18161737,115300.0,115290.0,0.61749467]
[1761582663778,0.18161737,115300.0,115290.0,0.05693]
[1761582663963,0.18161737,115300.0,115290.0,0.23040558]
[1761582664188,0.17350895,115300.0,115290.0,0.23040558]
[1761582664648,4.842e-05,115300.0,115290.0,0.69786375]
[1761582665218,4.842e-05,115300.0,115290.0,0.61749467]
[1761582665428,4.842e-05,115300.0,115290.0,1.00458376]
[1761582667399,4.842e-05,115300.0,115290.0,1.43440277]
[1761582667870,4.842e-05,115300.0,115290.0,1.85767414]
[1761582668115,4.842e-05,115300.0,115290.0,1.47058505]
[1761582668328,4.842e-05,115300.0,115290.0,1.85767414]
[1761582668544,4.842e-05,115300.0,115290.0,1.94749315]
[1761582669041,4.842e-05,115300.0,115290.0,1.94349315]
[1761582669248,4.842e-05,115300.0,115290.0,1.95649315]
[1761582669724,4.842e-05,115300.0,115290.0,1.95549315]
[1761582669938,0.17735078,115350.0,115340.0,0.39916909]
[1761582670147,0.18556656,115350.0,115340.0,0.39916909]
[1761582670380,0.18577268,115350.0,115340.0,0.43742909]
[1761582670818,0.18577268,115350.0,115340.0,0.02779]
[1761582671916,0.18677268,115350.0,115340.0,0.02779]
[1761582672127,0.19177268,115350.0,115340.0,0.02779]
[1761582672339,0.19177268,115350.0,115340.0,0.05034]
[1761582673451,0.66768078,115350.0,115340.0,0.01208]
[1761582673642,0.17340038,115340.0,115330.0,0.01208]
[1761582673858,0.5685791,115340.0,115330.0,0.02779]
[1761582674080,0.18149001,115340.0,115330.0,0.01208]
[1761582674314,0.17341541,115330.0,115320.0,0.21670723]
[1761582674546,0.17341541,115330.0,115320.0,0.03463]
[1761582674774,0.17343045,115320.0,115300.0,0.17346052]
[1761582674999,0.56053458,115310.0,115290.0,0.20733558]
[1761582675449,0.17346053,115300.0,115290.0,0.54733558]
[1761582675680,0.17346053,115300.0,115290.0,0.20733558]
[1761582676111,0.17346053,115300.0,115290.0,0.22304558]
[1761582676332,0.17346053,115300.0,115290.0,0.2235307]
[1761582676554,0.17344549,115310.0,115300.0,0.17346053]
[1761582676993,0.17344549,115310.0,115300.0,0.21172053]
[1761582677427,0.17344549,115310.0,115300.0,0.59880962]
[1761582677852,0.17344549,115310.0,115300.0,0.21172053]
[1761582678473,0.18453071,115310.0,115300.0,0.21172053]
[1761582678911,0.18153071,115310.0,115300.0,0.21172053]
[1761582679940,0.27192098,115320.0,115300.0,0.21172053]
[1761582680177,0.17344549,115310.0,115300.0,0.21172053]
[1761582680385,0.18153459,115310.0,115300.0,0.18917053]
[1761582680817,0.0080891,115310.0,115300.0,0.18917053]
[1761582681060,0.0080891,115310.0,115300.0,0.21172053]
[1761582681299,0.18208618,115330.0,115310.0,0.17344549]
[1761582681501,0.17343045,115320.0,115310.0,0.19599549]
[1761582681629,0.17343045,115320.0,115310.0,0.17344549]
[1761582681630,0.18152167,115320.0,115310.0,0.17344549]
[1761582681877,0.00809122,115320.0,115310.0,0.20123549]
[1761582682083,0.18152167,115320.0,115310.0,0.20123549]
[1761582682295,0.00809122,115320.0,115310.0,0.22378549]
[1761582682494,0.18152167,115320.0,115310.0,0.22378549]
[1761582682907,0.18452167,115320.0,115310.0,0.22378549]
[1761582683964,0.18452167,115320.0,115310.0,0.05034]
[1761582684169,0.18152167,115320.0,115310.0,0.22378549]
[1761582684442,0.18152167,115320.0,115310.0,0.02779]
[1761582684658,0.18152167,115320.0,115310.0,0.03079]
[1761582685034,0.27134068,115320.0,115310.0,0.003]
[1761582685466,0.17344549,115310.0,115290.0,0.18526717]
[1761582685686,0.17346053,115300.0,115290.0,0.20781717]
[1761582686038,0.17346053,115300.0,115290.0,0.22352717]
[1761582687314,0.17346053,115300.0,115290.0,0.20097717]
[1761582687530,0.17346053,115300.0,115290.0,0.22352717]
[1761582687927,0.17346053,115300.0,115290.0,0.22652717]
[1761582688390,0.17344549,115310.0,115290.0,0.22652717]
[1761582688606,0.18154426,115310.0,115300.0,0.02372]
[1761582689508,0.18154426,115310.0,115300.0,0.21319053]
[1761582689950,0.00809877,115310.0,115300.0,0.21319053]
[1761582690182,0.18154426,115310.0,115300.0,0.21319053]
[1761582691296,0.18154426,115310.0,115300.0,0.01601]
[1761582692393,0.18154426,115310.0,115300.0,0.03973]
[1761582692801,0.18154426,115310.0,115300.0,0.21319053]
[1761582693956,0.00809877,115310.0,115300.0,0.21319053]
[1761582694775,0.00809877,115310.0,115300.0,0.26117799]
[1761582695016,0.00809877,115310.0,115300.0,0.8939833]
[1761582695852,0.18208618,115330.0,115320.0,0.17343045]
[1761582696025,0.00810234,115330.0,115320.0,0.17343045]
[1761582696226,0.00810234,115330.0,115320.0,0.21316045]
[1761582697070,0.00910234,115330.0,115320.0,0.21316045]
[1761582697288,0.01410234,115330.0,115320.0,0.21316045]
[1761582699516,0.01310234,115330.0,115320.0,0.21316045]
[1761582699990,0.00810234,115330.0,115320.0,0.21316045]
[1761582701167,0.00810234,115330.0,115320.0,0.89395322]
[1761582701391,0.00810234,115330.0,115320.0,1.23395322]
[1761582701992,0.1775569,115350.0,115340.0,0.17340038]
[1761582702197,0.18565955,115350.0,115340.0,0.17340038]
[1761582702389,0.17340038,115340.0,115330.0,0.19712951]
[1761582702736,0.18150303,115340.0,115330.0,0.19713541]
[1761582702900,0.18150303,115340.0,115330.0,0.21314541]
[1761582703056,0.18162912,115340.0,115330.0,0.21314541]
[1761582703462,0.00822874,115340.0,115330.0,0.21314541]
[1761582703880,0.01122874,115340.0,115330.0,0.21314541]
[1761582704550,0.18462912,115340.0,115330.0,0.21314541]
[1761582704767,0.01122874,115340.0,115330.0,0.21314541]
[1761582705396,0.18462912,115340.0,115330.0,0.21314541]
[1761582706667,0.18462912,115340.0,115330.0,0.17341541]
[1761582706911,0.18462912,115340.0,115330.0,0.18942541]
[1761582708288,0.18462912,115340.0,115330.0,0.01601]
[1761582708506,0.18462912,115340.0,115330.0,0.18942541]
[1761582709981,0.18462912,115340.0,115330.0,0.21314541]
[1761582710472,0.17652647,115340.0,115330.0,0.21314541]
[1761582710871,0.17652647,115340.0,115330.0,0.03973]
[1761582711102,0.17652647,115340.0,115310.0,0.18546197]
[1761582711103,0.17343045,115320.0,115310.0,0.18546197]
[1761582711349,0.18152751,115320.0,115310.0,0.02804]
[1761582711601,0.17343045,115320.0,115310.0,0.02804]
[1761582712470,0.17344549,115310.0,115300.0,0.19717963]
[1761582712742,0.17344549,115310.0,115300.0,0.21318963]
[1761582713171,0.17343045,115320.0,115300.0,0.21318963]
[1761582713385,0.17344549,115310.0,115300.0,0.03973]
[1761582713620,0.17344549,115310.0,115300.0,0.01601]
[1761582714101,0.17344549,115310.0,115300.0,0.03973]
[1761582715276,0.17344549,115310.0,115300.0,0.21319053]
[1761582715503,0.17344549,115310.0,115300.0,0.03973]
[1761582716826,0.17344549,115310.0,115300.0,0.21319053]
[1761582717046,0.17644549,115310.0,115300.0,0.21319053]
[1761582720320,0.17644549,115310.0,115300.0,0.03973]
[1761582720526,0.17644549,115310.0,115300.0,0.21319053]
[1761582721148,0.17644549,115310.0,115300.0,0.03973]
[1761582721360,0.17644549,115310.0,115300.0,0.21319053]
[1761582721560,0.17644549,115310.0,115300.0,0.03973]
[1761582721761,0.17644549,115310.0,115300.0,0.01601]
[1761582722714,0.17644549,115310.0,115300.0,0.02801]
[1761582723728,0.21143308,115310.0,115300.0,0.02801]
[1761582723950,0.17644549,115310.0,115300.0,0.02801]
[1761582726660,0.17644549,115310.0,115300.0,0.22614053]
[1761582729053,0.17644549,115310.0,115300.0,0.05268]
[1761582730104,0.17644549,115310.0,115300.0,0.02801]
[1761582730711,0.21143308,115310.0,115300.0,0.02801]
[1761582732066,0.17644549,115310.0,115300.0,0.02801]
[1761582733554,0.17346053,115300.0,115290.0,0.21812912]
[1761582733978,0.17346053,115300.0,115290.0,0.23333912]
[1761582734701,0.17346053,115300.0,115290.0,0.23382424]
[1761582735109,0.17344549,115310.0,115290.0,0.23382424]
[1761582735321,0.17344549,115310.0,115300.0,0.17346053]
[1761582735537,0.17344549,115310.0,115300.0,0.20955053]
[1761582735738,0.20812943,115320.0,115300.0,0.20955053]
[1761582735739,0.20812943,115320.0,115300.0,0.22476053]
[1761582735855,0.1902041,115320.0,115310.0,0.03609]
[1761582736259,0.1902041,115320.0,115310.0,0.22474549]
[1761582736461,0.00810213,115320.0,115310.0,0.26570809]
[1761582736711,0.20077024,115330.0,115320.0,0.17343045]
[1761582736890,0.19020262,115330.0,115320.0,0.20952045]
[1761582737084,0.00810377,115330.0,115320.0,0.22473045]
[1761582737498,0.01867463,115340.0,115330.0,0.17341541]
[1761582737706,0.00810574,115340.0,115330.0,0.20950541]
[1761582737924,0.19226675,115350.0,115340.0,0.17340038]
[1761582738125,0.20037209,115350.0,115340.0,0.20949038]
[1761582738371,0.20037209,115350.0,115340.0,0.22470038]
[1761582738769,0.2004982,115350.0,115340.0,0.18861038]
[1761582739040,0.2004982,115350.0,115340.0,0.21328038]
[1761582739211,0.2084982,115350.0,115340.0,0.21328038]
[1761582739655,0.2084982,115350.0,115340.0,0.01521]
[1761582740035,0.2084982,115350.0,115340.0,0.03988]
[1761582740204,0.2094982,115350.0,115340.0,0.03988]
[1761582741085,0.2094982,115350.0,115340.0,0.01521]
[1761582741259,0.2094982,115350.0,115340.0,0.18861038]
[1761582741417,0.2094982,115350.0,115340.0,0.21328038]
[1761582742467,0.2094982,115350.0,115340.0,0.22470038]
[1761582743051,0.20949754,115350.0,115340.0,0.75182038]
[1761582743259,0.0361122,115350.0,115340.0,0.75182038]
[1761582743457,0.01743757,115350.0,115340.0,0.75182038]
[1761582744230,0.19082291,115350.0,115340.0,0.75182038]
[1761582744439,0.20949754,115350.0,115340.0,0.75182038]
[1761582744642,0.19082514,115350.0,115340.0,0.75182038]
[1761582745269,0.0174398,115350.0,115340.0,0.75182038]
[1761582745474,0.18271757,115350.0,115340.0,0.75182038]
[1761582745680,0.17371757,115350.0,115340.0,0.75182038]
[1761582746680,0.00033223,115350.0,115340.0,0.75182038]
[1761582747092,0.17371757,115350.0,115340.0,0.75182038]
[1761582747908,0.00033223,115350.0,115340.0,0.75182038]
[1761582749148,0.00033223,115350.0,115340.0,0.90430038]
[1761582755381,0.00033223,115350.0,115340.0,0.99411939]
[1761582756970,0.00033223,115350.0,115340.0,0.90430038]
[1761582757690,0.00033223,115350.0,115340.0,1.45379675]
[1761582758677,0.00033223,115350.0,115340.0,0.90430038]
[1761582760465,0.00033223,115350.0,115340.0,1.45379675]
[1761582761273,0.00033223,115350.0,115340.0,1.54361576]
[1761582761484,0.00033223,115350.0,115340.0,1.97343477]
[1761582761929,0.00033223,115350.0,115340.0,2.19741814]
[1761582762344,0.00033223,115350.0,115340.0,2.10759913]
[1761582763298,0.00033223,115350.0,115340.0,1.33411939]
[1761582763522,0.00033223,115350.0,115340.0,2.10759913]
[1761582764142,0.00033223,115350.0,115340.0,2.20071913]
[1761582764324,0.00033223,115350.0,115340.0,1.52146012]
[1761582764564,0.00033223,115350.0,115340.0,1.33726038]
[1761582764785,0.00033223,115350.0,115340.0,2.11074012]
[1761582765613,0.17274896,115360.0,115350.0,0.17338534]
[1761582765824,0.18084389,115360.0,115350.0,0.59596521]
[1761582766031,0.18084389,115360.0,115350.0,0.61163521]
[1761582766425,0.00809493,115360.0,115350.0,0.61163521]
[1761582768872,0.00809493,115360.0,115350.0,0.22489534]
[1761582769316,0.00809493,115360.0,115350.0,0.70145422]
[1761582770614,0.00809493,115360.0,115350.0,1.08819409]
[1761582771032,0.00809493,115360.0,115350.0,0.37015435]
[1761582771243,0.00809493,115360.0,115350.0,0.75689422]
[1761582771450,0.00809493,115360.0,115350.0,1.5734531]
[1761582772333,0.00830102,115360.0,115350.0,1.5734531]
[1761582772510,0.00830102,115360.0,115350.0,1.48363409]
[1761582774272,0.00830102,115360.0,115350.0,1.48463409]
[1761582774688,0.00830102,115360.0,115350.0,1.48963409]
[1761582775760,0.00830102,115360.0,115350.0,1.66295409]
[1761582778517,0.00830102,115360.0,115350.0,0.88947435]
[1761582778715,0.00830102,115360.0,115350.0,1.7527731]
[1761582778899,0.00830614,115360.0,115350.0,1.7527731]
[1761582779883,0.00830614,115360.0,115350.0,2.13951297]
[1761582780077,0.00830614,115360.0,115350.0,1.7527731]
[1761582782359,0.00830535,115360.0,115350.0,1.7527731]
[1761582782937,0.00830535,115360.0,115350.0,1.8428931]
[1761582783151,0.00830535,115360.0,115350.0,1.9330131]
[1761582785387,0.00830535,115360.0,115350.0,2.1409731]
[1761582791293,0.00020609,115360.0,115350.0,2.1409731]
[1761582795025,0.00020609,115360.0,115350.0,2.2933731]
[1761582795431,0.00020609,115360.0,115350.0,1.51989336]
[1761582795650,0.00020609,115360.0,115350.0,0.84095435]
[1761582795884,0.00020609,115360.0,115350.0,1.72695521]
[1761582796296,0.00020609,115360.0,115350.0,1.34021534]
[1761582796504,0.00020609,115360.0,115350.0,1.72695521]
[1761582796907,0.00831558,115360.0,115350.0,1.38695521]
[1761582797108,0.00831558,115360.0,115350.0,1.72695521]
[1761582797514,0.00831558,115360.0,115350.0,1.72195521]
[1761582797718,0.00831558,115360.0,115350.0,1.72095521]
[1761582797930,0.00831558,115360.0,115350.0,1.69720521]
[1761582798143,0.00831558,115360.0,115350.0,1.72160521]
[1761582798948,0.00831558,115360.0,115350.0,1.63148521]
[1761582799757,0.00831558,115360.0,115350.0,1.24474534]
[1761582799967,0.17362543,115370.0,115350.0,1.24474534]
[1761582799968,0.00027,115370.0,115360.0,0.17337031]
[1761582800176,0.00027,115370.0,115360.0,1.71007992]
[1761582800386,0.00027,115370.0,115360.0,0.65523932]
[1761582800815,0.00027,115370.0,115360.0,1.42871906]
[1761582801436,0.00027,115370.0,115360.0,1.58111906]
[1761582801640,0.00027,115370.0,115360.0,1.67093807]
[1761582801836,0.00027,115370.0,115360.0,0.89745833]
[1761582802460,0.00027,115370.0,115360.0,0.89845833]
[1761582802672,0.00027,115370.0,115360.0,1.67693807]
[1761582803057,0.00027,115370.0,115360.0,2.06513807]
[1761582803292,0.00027,115370.0,115360.0,1.29165833]
[1761582803487,0.00027,115370.0,115360.0,2.27163794]
[1761582803696,0.00027,115370.0,115360.0,1.91127794]
[1761582803905,0.00027,115370.0,115360.0,2.06367794]
[1761582804332,0.00027,115370.0,115360.0,1.2901982]
[1761582804540,0.00027,115370.0,115360.0,2.06367794]
[1761582804955,0.00027,115370.0,115360.0,0.90345833]
[1761582805162,0.00027,115370.0,115360.0,2.06367794]
[1761582805776,0.00047606,115370.0,115360.0,2.06367794]
[1761582806200,0.00047606,115370.0,115360.0,0.93964061]
[1761582806412,0.0002,115380.0,115370.0,1.70975718]
[1761582806627,0.0002,115380.0,115370.0,1.9135952]
[1761582806835,0.00040603,115380.0,115370.0,0.76893559]
[1761582807047,0.00040603,115380.0,115370.0,1.54241533]
[1761582807671,0.00040603,115380.0,115370.0,1.9341552]
[1761582808392,0.00040603,115380.0,115370.0,0.77393559]
[1761582808596,0.00040603,115380.0,115370.0,1.9351552]
[1761582809207,0.00040603,115380.0,115370.0,1.9340416]
[1761582809415,0.0002,115420.0,115410.0,0.1732952]
[1761582809631,0.00032611,115420.0,115410.0,0.84366346]
[1761582809853,0.00032611,115420.0,115410.0,0.7191852]
[1761582810050,0.00032611,115420.0,115410.0,0.20589]
[1761582810051,0.1736063,115420.0,115410.0,0.20589]
[1761582810629,0.1746063,115420.0,115410.0,0.3791852]
[1761582810841,0.1766063,115420.0,115410.0,0.3791852]
[1761582811052,0.00232611,115420.0,115410.0,0.3791852]
[1761582811639,0.00232611,115420.0,115410.0,0.46900421]
[1761582811885,0.00232611,115420.0,115410.0,0.85538902]
[1761582812057,0.00841931,115420.0,115410.0,0.85538902]
[1761582812255,0.01441931,115420.0,115410.0,0.85538902]
[1761582812456,0.01441931,115420.0,115410.0,0.46900421]
[1761582812658,0.01441931,115420.0,115410.0,0.3791852]
[1761582812856,0.1876995,115420.0,115410.0,0.76557001]
[1761582813058,0.01441931,115420.0,115410.0,0.9059052]
[1761582813263,0.01441667,115420.0,115410.0,1.29229001]
[1761582813703,0.01441667,115420.0,115410.0,0.9059052]
[1761582813904,0.01441667,115420.0,115410.0,1.29229001]